[Event "XIX Najdorf Memorial 2019"]
[Site "Warsaw"]
[Date "2019.07.11"]
[Round "6.23"]
[White "Bebel, Arkadiusz"]
[Black "Martynyuk, Elizaveta"]
[Result "1-0"]
[ECO "B22"]
[WhiteElo "2290"]
[BlackElo "2125"]
[Annotator "NA"]
[PlyCount "123"]
[EventDate "2019.07.06"]
[EventType "swiss"]
[EventCountry "POL"]
[SourceTitle "playchess.com"]
[Source "ChessBase"]
[SourceQuality "1"]
[TimeControl "40/5400+30:1800+30"]

1. e4 {[%emt 0:00:00]} c5 {[%emt 0:06:33]} 2. c3 {[%emt 0:00:00]} Nf6 {[%emt 0:00:19]} 3. e5 {[%emt 0:00:08]} Nd5 {[%emt 0:00:38]} 4. Nf3 {[%emt 0:00:11]} Nc6 {[%emt 0:00:03]} 5. Bc4 {[%emt 0:00:10]} Nb6 {[%emt 0:00:09]} 6. Bb3 {[%emt 0:00:12]} c4 {[%emt 0:00:54]} 7. Bc2 {[%emt 0:00:07]} d6 {[%emt 0:00:09]} 8. exd6 {[%emt 0:02:01]} e5 {[%emt 0:00:52]} 9. O-O {[%emt 0:03:27]} Be6 {[%emt 0:01:09]} 10. Qe2 {[%emt 0:07:29]} Bxd6 {[%emt 0:00:42]} 11. b3 {[%emt 0:00:17]} cxb3 {[%emt 0:10:38]} 12. axb3 {[%emt 0:00:11]} O-O {[%emt 0:00:11]} 13. d4 {[%emt 0:07:32]} Bg4 {[%emt 0:05:45]} 14. d5 {[%emt 0:06:46]} Nxd5 {[%emt 0:07:14]} 15. Rd1 {[%emt 0:03:40]} Nxc3 {[%emt 0:11:17]} 16. Nxc3 {[%emt 0:00:54]} Nd4 {[%emt 0:00:10]} 17. Rxd4 {[%emt 0:07:32]} exd4 {[%emt 0:00:04]} 18. Qd3 {[%emt 0:02:25]} g6 {[%emt 0:06:50]} 19. Ne4 {[%emt 0:00:14]} Bf5 {[%emt 0:05:20]} 20. Bg5 {[%emt 0:16:53]} Qb6 {[%emt 0:05:33]} 21. Qd2 {[%emt 0:09:57]} Bb4 {[%emt 0:02:09]} 22. Qxd4 {[%emt 0:05:19]} Qxd4 {[%emt 0:01:50]} 23. Nxd4 {[%emt 0:00:06]} Bxe4 {[%emt 0:00:22]} 24. Bxe4 {[%emt 0:00:02]} Rfe8 {[%emt 0:00:43]} 25. Bxb7 {[%emt 0:09:02]} Rab8 {[%emt 0:01:34]} 26. Ba6 {[%emt 0:00:53]} Rb6 {[%emt 0:07:30]} 27. Bf1 {[%emt 0:01:42]} Bc3 {[%emt 0:10:22]} 28. Ra4 {[%emt 0:00:01]} a5 {[%emt 0:04:41]} 29. Be3 {[%emt 0:02:22]} Rb4 {[%emt 0:01:47]} 30. Rxb4 {[%emt 0:00:28]} axb4 {[%emt 0:00:03]} 31. g3 {[%emt 0:00:52]} Rd8 {[%emt 0:01:26]} 32. Nf3 {[%emt 0:00:42]} Kg7 {[%emt 0:00:42]} 33. Bc4 {[%emt 0:00:59]} h6 {[%emt 0:01:07]} 34. Kf1 {[%emt 0:00:14]} g5 {[%emt 0:00:35]} 35. g4 {[%emt 0:00:54]} f6 {[%emt 0:02:45]} 36. Ke2 {[%emt 0:00:23]} Kg6 {[%emt 0:00:28]} 37. Bd3+ {[%emt 0:00:51]} Kg7 {[%emt 0:00:24]} 38. h4 {[%emt 0:00:06]} Ra8 {[%emt 0:00:58]} 39. Bc4 {[%emt 0:00:41]} Ra2+ {[%emt 0:02:53]} 40. Kd3 {[%emt 0:00:00]} gxh4 {[%emt 0:00:00]} 41. Nxh4 {[%emt 0:00:46]} Be1 {[%emt 0:00:38]} 42. Nf5+ {[%emt 0:00:11]} Kg6 {[%emt 0:01:33]} 43. f3 {[%emt 0:03:58]} Rh2 {[%emt 0:00:59]} 44. Bb5 {[%emt 0:00:19]} Kh7 {[%emt 0:02:00]} 45. Be8 {[%emt 0:01:22]} Bc3 {[%emt 0:00:35]} 46. Bf7 {[%emt 0:01:21]} Be5 {[%emt 0:00:38]} 47. Bd2 {[%emt 0:01:27]} Rh3 {[%emt 0:00:47]} 48. Bd5 {[%emt 0:01:38]} h5 {[%emt 0:00:23]} 49. gxh5 {[%emt 0:00:14]} Rxh5 {[%emt 0:00:39]} 50. Be4 {[%emt 0:00:07]} Kg8 {[%emt 0:00:38]} 51. Bxb4 {[%emt 0:00:07]} Kf7 {[%emt 0:00:03]} 52. Bc5 Kg8 {[%emt 0:02:29]} 53. b4 {[%emt 0:03:01]} Kf7 {[%emt 0:00:55]} 54. Kc4 {[%emt 0:00:10]} Rh1 {[%emt 0:00:14]} 55. Kd5 {[%emt 0:01:06]} Rd1+ {[%emt 0:01:15]} 56. Kc6 {[%emt 0:00:18]} Ke6 {[%emt 0:00:26]} 57. b5 {[%emt 0:00:34]} Rd8 {[%emt 0:00:19]} 58. b6 {[%emt 0:00:32]} Rc8+ {[%emt 0:00:17]} 59. Kb5 {[%emt 0:00:19]} Kd7 {[%emt 0:00:02]} 60. Ne3 {[%emt 0:00:43]} Rh8 {[%emt 0:02:25]} 61. Bf5+ {[%emt 0:00:23]} Kd8 {[%emt 0:00:07]} 62. Kc6 {[%emt 0:00:48]} 1-0

[Event "XIX Najdorf Memorial 2019"]
[Site "Warsaw"]
[Date "2019.07.11"]
[Round "6.24"]
[White "Szustakowski, Antoni"]
[Black "Harazinska, Magdalena"]
[Result "1/2-1/2"]
[ECO "D22"]
[WhiteElo "2279"]
[BlackElo "2004"]
[Annotator "NA"]
[PlyCount "57"]
[EventDate "2019.07.06"]
[EventType "swiss"]
[EventCountry "POL"]
[SourceTitle "playchess.com"]
[Source "ChessBase"]
[SourceQuality "1"]
[TimeControl "40/5400+30:1800+30"]

1. d4 {[%emt 0:00:00]} d5 {[%emt 0:00:00]} 2. c4 {[%emt 0:00:00]} dxc4 {[%emt 0:00:00]} 3. Nf3 {[%emt 0:00:00]} a6 {[%emt 0:00:00]} 4. e3 {[%emt 0:00:00]} b5 {[%emt 0:01:45]} 5. a4 {[%emt 0:00:00]} Bb7 {[%emt 0:00:41]} 6. b3 {[%emt 0:00:07]} e6 {[%emt 0:01:28]} 7. bxc4 {[%emt 0:00:13]} bxc4 {[%emt 0:00:35]} 8. Bxc4 {[%emt 0:00:07]} c5 {[%emt 0:03:19]} 9. O-O {[%emt 0:00:34]} Nf6 {[%emt 0:06:31]} 10. Nbd2 {[%emt 0:00:13]} cxd4 {[%emt 0:01:07]} 11. Nxd4 {[%emt 0:00:09]} Be7 {[%emt 0:03:50]} 12. Bb2 {[%emt 0:02:00]} Nbd7 {[%emt 0:02:14]} 13. Qe2 {[%emt 0:03:55]} Nc5 {[%emt 0:04:30]} 14. Rfd1 {[%emt 0:02:29]} Qc7 {[%emt 0:05:25]} 15. N2b3 {[%emt 0:05:20]} O-O {[%emt 0:01:43]} 16. Nxc5 {[%emt 0:02:00]} Qxc5 {[%emt 0:02:19]} 17. Ba3 {[%emt 0:04:10]} Qc7 {[%emt 0:01:27]} 18. Bxe7 {[%emt 0:00:07]} Qxe7 {[%emt 0:00:03]} 19. f3 {[%emt 0:01:43]} Rfd8 {[%emt 0:02:45]} 20. Rab1 {[%emt 0:04:25]} Nd5 {[%emt 0:06:10]} 21. Bxd5 {[%emt 0:01:41]} Rxd5 {[%emt 0:02:32]} 22. Rb6 {[%emt 0:04:30]} Rd7 {[%emt 0:19:16]} 23. Rdb1 {[%emt 0:00:52]} Rc8 {[%emt 0:00:52]} 24. Qb2 {[%emt 0:05:46]} Rcc7 {[%emt 0:00:48]} 25. Rc1 {[%emt 0:03:16]} h6 {[%emt 0:03:54]} 26. Rxc7 {[%emt 0:04:40]} Rxc7 {[%emt 0:02:11]} 27. Kf1 {[%emt 0:05:21]} Bd5 {[%emt 0:05:37]} 28. Qb1 {[%emt 0:06:02]} g6 {[%emt 0:03:09]} 29. Rb8+ {[%emt 0:01:00]} 1/2-1/2

[Event "XIX Najdorf Memorial 2019"]
[Site "Warsaw"]
[Date "2019.07.11"]
[Round "6.25"]
[White "Malynovskyi, Rostyslav"]
[Black "Jacobsen, Mikkel Manosri"]
[Result "1-0"]
[ECO "D31"]
[WhiteElo "2156"]
[BlackElo "2343"]
[Annotator "NA"]
[PlyCount "95"]
[EventDate "2019.07.06"]
[EventType "swiss"]
[EventCountry "POL"]
[SourceTitle "playchess.com"]
[Source "ChessBase"]
[SourceQuality "1"]
[TimeControl "40/5400+30:1800+30"]

1. d4 {[%emt 0:00:00]} d5 {[%emt 0:08:56]} 2. c4 {[%emt 0:00:00]} e6 {[%emt 0:00:09]} 3. Nc3 {[%emt 0:00:00]} c6 {[%emt 0:00:05]} 4. e4 {[%emt 0:04:36]} dxe4 {[%emt 0:02:14]} 5. Nxe4 {[%emt 0:00:05]} Nd7 {[%emt 0:00:03]} 6. Nf3 {[%emt 0:01:08]} Ngf6 {[%emt 0:00:07]} 7. Nxf6+ {[%emt 0:02:25]} Nxf6 {[%emt 0:00:16]} 8. Be2 {[%emt 0:00:53]} Be7 {[%emt 0:00:24]} 9. O-O {[%emt 0:00:08]} O-O {[%emt 0:00:54]} 10. Bf4 {[%emt 0:05:45]} b6 {[%emt 0:00:36]} 11. Ne5 {[%emt 0:02:31]} Bb7 {[%emt 0:00:06]} 12. Bf3 {[%emt 0:00:07]} Qc8 {[%emt 0:00:05]} 13. Qa4 {[%emt 0:07:49]} Bd6 {[%emt 0:03:00]} 14. Bxc6 {[%emt 0:11:48]} Nh5 {[%emt 0:06:23]} 15. Bxb7 {[%emt 0:04:05]} Qxb7 {[%emt 0:00:08]} 16. Be3 {[%emt 0:00:32]} Bxe5 {[%emt 0:16:14]} 17. dxe5 {[%emt 0:00:07]} Qe4 {[%emt 0:00:05]} 18. Qb5 {[%emt 0:02:38]} Rfb8 {[%emt 0:00:34]} 19. Rfe1 {[%emt 0:03:30]} a6 {[%emt 0:00:05]} 20. Qb3 {[%emt 0:00:17]} b5 {[%emt 0:01:44]} 21. Ba7 {[%emt 0:01:43]} Qg4 {[%emt 0:02:53]} 22. Bxb8 {[%emt 0:00:08]} Rxb8 {[%emt 0:00:11]} 23. h3 {[%emt 0:05:37]} Qxc4 {[%emt 0:00:49]} 24. Qxc4 {[%emt 0:00:06]} bxc4 {[%emt 0:00:06]} 25. Rac1 {[%emt 0:01:21]} Rxb2 {[%emt 0:00:34]} 26. Rxc4 {[%emt 0:01:08]} g5 {[%emt 0:00:14]} 27. Ra4 {[%emt 0:01:24]} Nf4 {[%emt 0:00:14]} 28. Rxa6 {[%emt 0:02:02]} Nd3 {[%emt 0:00:06]} 29. Rf1 {[%emt 0:00:04]} Nxe5 {[%emt 0:00:05]} 30. a4 {[%emt 0:00:25]} Ra2 {[%emt 0:01:04]} 31. Ra8+ {[%emt 0:04:16]} Kg7 {[%emt 0:00:05]} 32. Rc1 {[%emt 0:04:52]} Nd3 {[%emt 0:00:23]} 33. Rc7 {[%emt 0:00:22]} Kg6 {[%emt 0:03:31]} 34. a5 {[%emt 0:00:11]} Ra1+ {[%emt 0:05:14]} 35. Kh2 {[%emt 0:00:05]} Nxf2 {[%emt 0:00:06]} 36. a6 {[%emt 0:00:47]} f5 {[%emt 0:00:40]} 37. a7 {[%emt 0:02:16]} f4 {[%emt 0:00:05]} 38. g4 {[%emt 0:00:07]} Ra2 {[%emt 0:00:57]} 39. Rg8+ {[%emt 0:00:09]} Kf6 {[%emt 0:00:05]} 40. a8=Q {[%emt 0:00:00]} Nxg4+ {[%emt 0:00:00]} 41. Kg1 {[%emt 0:01:32]} Rxa8 {[%emt 0:01:53]} 42. Rxa8 {[%emt 0:00:05]} Ne3 {[%emt 0:00:25]} 43. Rxh7 {[%emt 0:01:01]} Kf5 {[%emt 0:00:36]} 44. Re8 {[%emt 0:00:57]} e5 {[%emt 0:00:15]} 45. Rhe7 {[%emt 0:00:07]} Nc4 {[%emt 0:01:33]} 46. Rc8 {[%emt 0:00:25]} Nd2 {[%emt 0:00:11]} 47. Rc5 {[%emt 0:00:19]} Kf6 {[%emt 0:00:07]} 48. Rd7 {[%emt 0:01:10]} 1-0

[Event "XIX Najdorf Memorial 2019"]
[Site "Warsaw"]
[Date "2019.07.11"]
[Round "6.26"]
[White "Czerw, Dawid"]
[Black "Jarocka, Liwia"]
[Result "1/2-1/2"]
[ECO "E44"]
[WhiteElo "2326"]
[BlackElo "2102"]
[Annotator "NA"]
[PlyCount "98"]
[EventDate "2019.07.06"]
[EventType "swiss"]
[EventCountry "POL"]
[SourceTitle "playchess.com"]
[Source "ChessBase"]
[SourceQuality "1"]
[TimeControl "40/5400+30:1800+30"]

1. d4 {[%emt 0:00:00]} Nf6 {[%emt 0:00:00]} 2. c4 {[%emt 0:00:00]} e6 {[%emt 0:00:00]} 3. Nc3 {[%emt 0:00:00]} Bb4 {[%emt 0:00:03]} 4. e3 {[%emt 0:00:00]} b6 {[%emt 0:00:50]} 5. Nge2 {[%emt 0:01:43]} Bb7 {[%emt 0:02:31]} 6. a3 {[%emt 0:00:05]} Be7 {[%emt 0:00:25]} 7. d5 {[%emt 0:00:11]} O-O {[%emt 0:04:45]} 8. g3 {[%emt 0:02:20]} d6 {[%emt 0:03:07]} 9. Bg2 {[%emt 0:02:30]} e5 {[%emt 0:02:30]} 10. O-O {[%emt 0:00:49]} a5 {[%emt 0:00:49]} 11. e4 {[%emt 0:01:50]} Na6 {[%emt 0:06:52]} 12. Rb1 {[%emt 0:01:27]} Bc8 {[%emt 0:01:36]} 13. b4 {[%emt 0:07:06]} Ne8 {[%emt 0:06:35]} 14. f4 {[%emt 0:16:00]} Bf6 {[%emt 0:04:44]} 15. Be3 {[%emt 0:02:08]} Bg4 {[%emt 0:01:21]} 16. Qd2 {[%emt 0:06:23]} g6 {[%emt 0:07:06]} 17. f5 {[%emt 0:09:31]} Bxe2 {[%emt 0:02:46]} 18. Nxe2 {[%emt 0:04:40]} Nb8 {[%emt 0:02:09]} 19. fxg6 {[%emt 0:03:08]} fxg6 {[%emt 0:05:07]} 20. c5 {[%emt 0:02:05]} axb4 21. axb4 {[%emt 0:01:33]} bxc5 {[%emt 0:05:12]} 22. bxc5 {[%emt 0:00:03]} dxc5 {[%emt 0:00:51]} 23. Bxc5 {[%emt 0:01:10]} Nd6 {[%emt 0:00:08]} 24. h4 {[%emt 0:07:01]} Nd7 {[%emt 0:01:39]} 25. Bb4 {[%emt 0:01:15]} Be7 {[%emt 0:02:00]} 26. Qc2 {[%emt 0:04:24]} Nf6 {[%emt 0:03:10]} 27. Rfc1 {[%emt 0:01:43]} Ra7 {[%emt 0:08:59]} 28. Bc5 {[%emt 0:01:12]} Ra8 {[%emt 0:01:02]} 29. Re1 {[%emt 0:06:42]} Qd7 {[%emt 0:00:50]} 30. Nc1 {[%emt 0:01:42]} Qg4 {[%emt 0:06:44]} 31. Bf2 {[%emt 0:02:46]} Nh5 {[%emt 0:02:11]} 32. Qe2 {[%emt 0:02:44]} Qd7 {[%emt 0:04:14]} 33. Nd3 {[%emt 0:00:41]} Qe8 {[%emt 0:07:32]} 34. Nc5 {[%emt 0:02:36]} Ra3 {[%emt 0:02:50]} 35. Rb3 {[%emt 0:04:58]} Rxb3 {[%emt 0:00:58]} 36. Nxb3 {[%emt 0:00:01]} Nb7 {[%emt 0:02:15]} 37. Qa6 {[%emt 0:01:40]} Nd8 {[%emt 0:00:11]} 38. Qc4 {[%emt 0:00:40]} Bd6 {[%emt 0:00:34]} 39. Rf1 {[%emt 0:01:37]} Qd7 {[%emt 0:01:19]} 40. Qe2 {[%emt 0:00:00]} Qe7 {[%emt 0:00:00]} 41. Bh3 {[%emt 0:06:16]} Kh8 {[%emt 0:02:56]} 42. Rc1 {[%emt 0:02:35]} Qf7 {[%emt 0:03:40]} 43. Kg2 {[%emt 0:01:44]} Nf6 {[%emt 0:05:57]} 44. Nd2 {[%emt 0:01:37]} Qe7 {[%emt 0:02:27]} 45. Be3 {[%emt 0:02:57]} Nf7 {[%emt 0:00:20]} 46. Qd3 {[%emt 0:01:46]} Nh5 {[%emt 0:02:54]} 47. Qe2 {[%emt 0:04:06]} Nf6 {[%emt 0:01:03]} 48. Rf1 {[%emt 0:03:47]} Kg7 {[%emt 0:00:30]} 49. Rc1 {[%emt 0:02:01]} Kh8 1/2-1/2

[Event "XIX Najdorf Memorial 2019"]
[Site "Warsaw"]
[Date "2019.07.11"]
[Round "6.27"]
[White "Shkliar, Boris"]
[Black "Kucza, Karol"]
[Result "0-1"]
[ECO "B01"]
[WhiteElo "2160"]
[BlackElo "2315"]
[Annotator "NA"]
[PlyCount "118"]
[EventDate "2019.07.06"]
[EventType "swiss"]
[EventCountry "POL"]
[SourceTitle "playchess.com"]
[Source "ChessBase"]
[SourceQuality "1"]
[TimeControl "40/5400+30:1800+30"]

1. e4 {[%emt 0:00:00]} d5 {[%emt 0:00:00]} 2. exd5 {[%emt 0:00:00]} Nf6 {[%emt 0:00:00]} 3. Nf3 {[%emt 0:00:00]} Nxd5 {[%emt 0:00:04]} 4. d4 {[%emt 0:00:08]} g6 {[%emt 0:00:19]} 5. c4 {[%emt 0:04:06]} Nb6 {[%emt 0:00:05]} 6. Nc3 {[%emt 0:00:22]} Bg7 {[%emt 0:00:07]} 7. Be3 {[%emt 0:01:00]} O-O {[%emt 0:00:09]} 8. Be2 {[%emt 0:02:05]} Nc6 {[%emt 0:03:05]} 9. d5 {[%emt 0:11:50]} Ne5 {[%emt 0:11:35]} 10. Bd4 {[%emt 0:07:36]} Nxf3+ {[%emt 0:04:45]} 11. Bxf3 {[%emt 0:00:27]} e5 {[%emt 0:03:11]} 12. Bc5 {[%emt 0:08:48]} Re8 {[%emt 0:00:22]} 13. Qb3 {[%emt 0:01:36]} e4 {[%emt 0:03:48]} 14. Be2 {[%emt 0:01:33]} Qg5 {[%emt 0:17:32]} 15. Be3 {[%emt 0:14:55]} Qxg2 {[%emt 0:01:48]} 16. O-O-O {[%emt 0:00:19]} Qh3 {[%emt 0:01:16]} 17. Nb5 {[%emt 0:04:04]} Be5 {[%emt 0:10:55]} 18. c5 {[%emt 0:11:04]} a6 {[%emt 0:01:42]} 19. cxb6 {[%emt 0:20:02]} axb5 {[%emt 0:00:07]} 20. bxc7 {[%emt 0:00:29]} Bxc7 {[%emt 0:01:34]} 21. Bxb5 {[%emt 0:01:52]} Bd7 {[%emt 0:00:16]} 22. d6 {[%emt 0:01:24]} Bd8 {[%emt 0:01:32]} 23. Bc4 {[%emt 0:01:53]} Qf5 {[%emt 0:03:55]} 24. Rd5 {[%emt 0:02:46]} Qf3 {[%emt 0:00:06]} 25. Rhd1 {[%emt 0:00:26]} b6 {[%emt 0:05:00]} 26. Kb1 {[%emt 0:01:18]} Ba4 {[%emt 0:00:34]} 27. Qxa4 {[%emt 0:01:54]} Rxa4 {[%emt 0:00:11]} 28. Bb5 {[%emt 0:00:01]} Ra5 {[%emt 0:04:31]} 29. Bxe8 {[%emt 0:00:22]} Rxd5 {[%emt 0:00:15]} 30. Rxd5 {[%emt 0:00:00]} f5 {[%emt 0:00:16]} 31. Ba4 {[%emt 0:00:43]} f4 {[%emt 0:00:32]} 32. Bd1 {[%emt 0:00:22]} Qh1 {[%emt 0:00:05]} 33. Bxf4 {[%emt 0:00:59]} Kg7 {[%emt 0:01:09]} 34. Rd2 {[%emt 0:00:57]} g5 {[%emt 0:01:01]} 35. Be5+ {[%emt 0:00:38]} Kg6 {[%emt 0:00:06]} 36. Kc2 {[%emt 0:00:12]} h5 {[%emt 0:00:38]} 37. Kc3 {[%emt 0:00:10]} Qe1 {[%emt 0:00:49]} 38. Bc2 {[%emt 0:00:42]} b5 {[%emt 0:01:40]} 39. a3 {[%emt 0:01:13]} Ba5+ {[%emt 0:00:53]} 40. b4 {[%emt 0:00:00]} Bb6 {[%emt 0:00:00]} 41. Bxe4+ {[%emt 0:13:56]} Qxe4 {[%emt 0:00:25]} 42. Bd4 {[%emt 0:00:16]} Qc6+ {[%emt 0:06:30]} 43. Bc5 {[%emt 0:00:17]} Bxc5 {[%emt 0:00:08]} 44. bxc5 {[%emt 0:00:01]} Qxc5+ {[%emt 0:00:08]} 45. Kb3 {[%emt 0:00:33]} Qc4+ {[%emt 0:00:12]} 46. Kb2 {[%emt 0:00:07]} b4 {[%emt 0:00:05]} 47. axb4 {[%emt 0:01:21]} Qxb4+ {[%emt 0:00:04]} 48. Kc1 {[%emt 0:00:28]} Qc4+ {[%emt 0:00:04]} 49. Kb2 {[%emt 0:07:43]} Qb5+ {[%emt 0:00:08]} 50. Kc3 {[%emt 0:00:04]} Qd7 {[%emt 0:00:28]} 51. Kc4 {[%emt 0:00:44]} Kf7 {[%emt 0:03:17]} 52. Kc5 {[%emt 0:01:11]} Ke8 {[%emt 0:02:39]} 53. Re2+ {[%emt 0:01:36]} Kd8 {[%emt 0:00:06]} 54. Re5 {[%emt 0:02:12]} Qg4 {[%emt 0:00:30]} 55. Kd5 {[%emt 0:01:14]} h4 {[%emt 0:00:53]} 56. Kc6 {[%emt 0:02:00]} Qf3+ {[%emt 0:01:04]} 57. Rd5 {[%emt 0:00:26]} g4 {[%emt 0:00:45]} 58. d7 {[%emt 0:00:07]} Qxf2 {[%emt 0:00:43]} 59. Rg5 {[%emt 0:01:32]} Qf6+ {[%emt 0:00:11]} 0-1

[Event "XIX Najdorf Memorial 2019"]
[Site "Warsaw"]
[Date "2019.07.11"]
[Round "6.28"]
[White "Hassan, Abdullah"]
[Black "Liberadzki, Slawomir"]
[Result "1-0"]
[ECO "D37"]
[WhiteElo "2311"]
[BlackElo "2035"]
[Annotator "NA"]
[PlyCount "83"]
[EventDate "2019.07.06"]
[EventType "swiss"]
[EventCountry "POL"]
[SourceTitle "playchess.com"]
[Source "ChessBase"]
[SourceQuality "1"]
[TimeControl "40/5400+30:1800+30"]

1. d4 {[%emt 0:05:07]} d5 {[%emt 0:01:54]} 2. Nf3 {[%emt 0:00:03]} Nf6 {[%emt 0:00:10]} 3. c4 {[%emt 0:00:01]} e6 {[%emt 0:00:10]} 4. Nc3 {[%emt 0:00:16]} Be7 {[%emt 0:00:14]} 5. Bf4 {[%emt 0:00:14]} O-O {[%emt 0:00:32]} 6. e3 {[%emt 0:00:04]} b6 {[%emt 0:02:29]} 7. Qc2 {[%emt 0:00:52]} Bb7 {[%emt 0:08:04]} 8. Bd3 {[%emt 0:00:25]} c5 {[%emt 0:01:28]} 9. cxd5 {[%emt 0:01:12]} exd5 {[%emt 0:03:54]} 10. g4 {[%emt 0:01:16]} Nc6 {[%emt 0:07:50]} 11. a3 {[%emt 0:01:21]} cxd4 {[%emt 0:05:49]} 12. exd4 {[%emt 0:01:39]} Re8 {[%emt 0:03:57]} 13. O-O-O {[%emt 0:02:30]} Bd6 {[%emt 0:03:39]} 14. Bg5 {[%emt 0:00:37]} h6 {[%emt 0:03:09]} 15. Bh4 {[%emt 0:00:37]} Rc8 {[%emt 0:01:28]} 16. Bf5 {[%emt 0:07:52]} Bf4+ {[%emt 0:04:35]} 17. Kb1 {[%emt 0:00:03]} Rc7 {[%emt 0:00:18]} 18. g5 {[%emt 0:07:58]} hxg5 {[%emt 0:03:16]} 19. Nxg5 {[%emt 0:01:07]} Ne4 {[%emt 0:07:46]} 20. Bh7+ {[%emt 0:01:27]} Kf8 {[%emt 0:02:01]} 21. Ne6+ {[%emt 0:00:07]} Rxe6 {[%emt 0:00:19]} 22. Bxd8 {[%emt 0:00:03]} Nxc3+ {[%emt 0:05:14]} 23. Qxc3 {[%emt 0:00:55]} Nxd8 {[%emt 0:00:24]} 24. Qb4+ {[%emt 0:00:02]} Bd6 {[%emt 0:00:53]} 25. Qd2 {[%emt 0:00:03]} g6 {[%emt 0:03:31]} 26. Qh6+ {[%emt 0:04:18]} Ke8 {[%emt 0:03:41]} 27. Rhe1 {[%emt 0:00:39]} Bf8 {[%emt 0:02:34]} 28. Qf4 {[%emt 0:00:44]} Rce7 {[%emt 0:01:47]} 29. Rxe6 {[%emt 0:00:07]} Rxe6 {[%emt 0:01:15]} 30. h4 {[%emt 0:02:38]} Bd6 {[%emt 0:05:31]} 31. Qd2 {[%emt 0:01:15]} Ba6 {[%emt 0:01:41]} 32. Re1 {[%emt 0:00:56]} Bf4 {[%emt 0:03:00]} 33. Rxe6+ {[%emt 0:01:35]} Nxe6 {[%emt 0:00:07]} 34. Qd1 {[%emt 0:00:31]} Kf8 {[%emt 0:01:14]} 35. h5 {[%emt 0:22:15]} Kg7 {[%emt 0:00:26]} 36. hxg6 {[%emt 0:00:09]} fxg6 {[%emt 0:00:08]} 37. Qf3 {[%emt 0:00:52]} Bc8 {[%emt 0:05:48]} 38. Bxg6 {[%emt 0:12:53]} Kxg6 {[%emt 0:00:08]} 39. Qxd5 {[%emt 0:00:07]} Kf7 {[%emt 0:08:09]} 40. Qf5+ {[%emt 0:00:00]} Ke7 {[%emt 0:00:00]} 41. d5 {[%emt 0:00:43]} Nd4 {[%emt 0:01:28]} 42. Qxc8 {[%emt 0:01:18]} 1-0

[Event "XIX Najdorf Memorial 2019"]
[Site "Warsaw"]
[Date "2019.07.11"]
[Round "6.29"]
[White "Milikow, Elie"]
[Black "Antolak, Julia"]
[Result "0-1"]
[ECO "B81"]
[WhiteElo "2129"]
[BlackElo "2258"]
[Annotator "NA"]
[PlyCount "62"]
[EventDate "2019.07.06"]
[EventType "swiss"]
[EventCountry "POL"]
[SourceTitle "playchess.com"]
[Source "ChessBase"]
[SourceQuality "1"]
[TimeControl "40/5400+30:1800+30"]

1. e4 {[%emt 0:00:00]} c5 {[%emt 0:00:00]} 2. Nf3 {[%emt 0:00:00]} e6 {[%emt 0:00:00]} 3. d4 {[%emt 0:00:00]} cxd4 {[%emt 0:00:00]} 4. Nxd4 {[%emt 0:00:00]} Nf6 {[%emt 0:00:00]} 5. Nc3 {[%emt 0:00:00]} d6 {[%emt 0:00:03]} 6. g4 {[%emt 0:00:06]} h6 {[%emt 0:00:11]} 7. h4 {[%emt 0:00:05]} Nc6 {[%emt 0:00:07]} 8. Rg1 {[%emt 0:00:11]} d5 {[%emt 0:01:06]} 9. exd5 {[%emt 0:00:17]} Nxd5 {[%emt 0:00:07]} 10. Nxd5 {[%emt 0:00:28]} exd5 {[%emt 0:00:52]} 11. h5 {[%emt 0:04:52]} Be7 {[%emt 0:05:33]} 12. Be3 {[%emt 0:00:14]} O-O {[%emt 0:02:12]} 13. c3 {[%emt 0:06:57]} Re8 {[%emt 0:09:11]} 14. Be2 {[%emt 0:12:19]} Bg5 {[%emt 0:06:02]} 15. Bxg5 {[%emt 0:03:25]} Qxg5 {[%emt 0:00:38]} 16. Nc2 {[%emt 0:09:02]} Bxg4 {[%emt 0:11:44]} 17. Ne3 {[%emt 0:04:52]} Bxe2 {[%emt 0:00:34]} 18. Kxe2 {[%emt 0:00:10]} Qxh5+ {[%emt 0:16:07]} 19. Kd2 {[%emt 0:01:50]} Qe5 {[%emt 0:03:15]} 20. Qg4 {[%emt 0:07:02]} Re6 {[%emt 0:05:00]} 21. Rae1 {[%emt 0:01:26]} Rg6 {[%emt 0:02:56]} 22. Qf3 {[%emt 0:02:08]} d4 {[%emt 0:02:48]} 23. Nf5 {[%emt 0:09:11]} dxc3+ {[%emt 0:00:54]} 24. Kc1 {[%emt 0:00:38]} cxb2+ {[%emt 0:02:48]} 25. Kb1 {[%emt 0:01:36]} Nd4 {[%emt 0:04:05]} 26. Nxd4 {[%emt 0:07:01]} Rxg1 {[%emt 0:00:23]} 27. Rxg1 {[%emt 0:00:10]} Qxd4 {[%emt 0:00:05]} 28. Qxb7 {[%emt 0:01:59]} Rd8 {[%emt 0:00:30]} 29. Qxb2 {[%emt 0:00:09]} Qxb2+ {[%emt 0:00:11]} 30. Kxb2 {[%emt 0:00:07]} Rd2+ {[%emt 0:00:04]} 31. Kb3 {[%emt 0:00:06]} Rxf2 {[%emt 0:00:05]} 0-1